bitfinex-derivatives/quotes_ETHF0:USTF0_20251107
["timestamp","ask_amount","ask_price","bid_price","bid_amount"]
[1762474324498,0.4877,3323.6,3323.5,0.62691]
[1762474324692,0.4877,3323.6,3323.5,0.3847]
[1762474324900,0.4877,3323.6,3323.5,0.1392]
[1762474325097,0.48771,3323.5,3323.4,3.69553]
[1762474325300,0.12036,3323.6,3323.5,0.62731]
[1762474325500,0.4877,3323.6,3323.5,0.87491]
[1762474325902,0.4877,3323.6,3323.5,0.3872]
[1762474326108,0.4877,3323.6,3323.5,0.1396]
[1762474326705,0.71117,3323.1,3323.0,3.347]
[1762474326911,0.48783,3322.7,3322.6,3.21514364]
[1762474327609,0.71123,3322.7,3322.6,3.21514364]
[1762474327801,0.71123,3322.7,3322.6,0.00734364]
[1762474328005,0.83161,3322.7,3322.6,0.00734364]
[1762474330912,9.83521,3322.7,3321.3,2.12362343]
[1762474331112,0.1477,3323.0,3321.0,6.05209976]
[1762474331113,0.71145,3321.2,3321.0,0.1396]
[1762474331412,3.2835,3321.6,3320.6,3.3282]
[1762474331606,0.48814,3320.6,3320.5,0.1396]
[1762474332014,0.48815,3320.5,3320.3,0.48818]
[1762474332213,0.48815,3320.5,3320.4,0.1396]
[1762474334517,0.48815,3320.5,3320.3,0.00239225]
[1762474335215,0.48817,3320.4,3320.3,0.00239225]
[1762474335615,0.48817,3320.4,3320.3,0.49057225]
[1762474335811,0.00213964,3320.6,3320.3,0.00239225]
[1762474336016,0.00213964,3320.6,3320.5,0.73575]
[1762474338523,0.49027964,3320.6,3320.5,0.2476]
[1762474338721,0.71157,3320.4,3320.3,0.12285224]
[1762474339018,3.91937,3320.4,3320.3,0.00239225]
[1762474339317,0.7117,3319.5,3319.4,3.2078]
[1762474339524,0.7117,3319.5,3318.6,0.1396]
[1762474339525,0.48836,3319.1,3319.0,3.2078]
[1762474339711,0.48838,3319.0,3318.8,0.4884]
[1762474339914,3.2078,3319.2,3318.2,3.69628]
[1762474340111,0.48845,3318.5,3318.2,3.69935809]
[1762474340319,0.48847,3318.4,3318.2,3.21087809]
[1762474340519,0.48847,3318.4,3318.2,0.00307809]
[1762474340719,3.69624,3318.6,3318.2,0.00307809]
[1762474340917,0.48843,3318.6,3318.2,0.49155809]
[1762474341223,0.48845,3318.5,3318.3,0.48847]
[1762474341423,0.12054001,3318.9,3318.2,3.69935809]
[1762474341625,0.48845,3318.5,3318.3,0.48847]
[1762474342126,0.48844,3318.6,3318.4,0.48846]
[1762474342322,0.48846,3318.4,3318.2,3.21087809]
[1762474342522,0.48846,3318.5,3318.2,3.21087809]
[1762474342824,0.48846,3318.4,3318.2,3.21087809]
[1762474343626,0.2234,3318.3,3318.2,3.21087809]
[1762474344018,3.4312,3318.3,3318.2,0.00307809]
[1762474344414,3.32834001,3318.3,3317.4,3.3474]
[1762474344622,0.48859,3317.5,3317.4,3.3474]
[1762474344814,0.48859,3317.5,3317.4,0.1396]
[1762474345021,0.48857,3317.7,3317.4,0.1396]
[1762474345324,0.48859,3317.6,3317.4,0.14257492]
[1762474345624,0.2203,3317.5,3317.4,0.00297492]
[1762474346121,0.2203,3317.5,3317.0,3.2078]
[1762474346122,0.2203,3317.5,3317.3,0.48861]
[1762474346319,0.2173,3317.0,3315.6,0.1396]
[1762474346525,0.48877,3316.3,3316.2,0.1396]
[1762474346826,0.48885,3315.8,3315.6,0.1396]
[1762474347023,0.4889,3315.5,3315.3,0.12061999]
[1762474347226,0.4889,3315.5,3315.3,0.00233162]
[1762474347821,0.48889,3315.5,3315.3,0.00233162]
[1762474348323,0.0968,3315.4,3315.3,0.00233162]
[1762474349428,0.21746,3315.4,3315.3,0.00233162]
[1762474349616,0.0968,3315.4,3315.3,0.00233162]
[1762474349821,0.21746,3315.4,3315.3,0.00233162]
[1762474351221,0.48903,3314.5,3314.4,0.1396]
[1762474351625,3.69681,3314.7,3314.4,0.1396]
[1762474351831,0.00452318,3314.8,3314.5,0.48903]
[1762474352130,0.48901,3314.7,3314.4,0.62864]
[1762474352432,0.00667326,3314.8,3314.5,0.00354492]
[1762474352627,0.48901,3314.7,3314.5,0.00354492]
[1762474352825,0.49567326,3314.8,3314.5,0.00354492]
[1762474353130,0.48901,3314.7,3314.5,0.00354492]
[1762474354727,0.00667326,3314.8,3314.5,0.49256492]
[1762474354933,0.49566326,3314.8,3314.6,0.48901]
[1762474355629,0.00667326,3314.8,3314.6,0.48901]
[1762474356429,0.49566326,3314.8,3314.6,0.48901]
[1762474356834,0.00667326,3314.8,3314.7,0.2476]
[1762474357332,0.00667326,3314.8,3314.7,0.85729]
[1762474357539,3.2078,3315.5,3315.4,0.243]
[1762474357727,3.69669,3315.5,3315.4,0.243]
[1762474358123,3.69669,3315.5,3315.0,0.26804]
[1762474358124,3.2078,3315.5,3315.0,0.26804]
[1762474358327,3.69675,3315.1,3315.0,0.1474]
[1762474358730,3.21123312,3315.1,3314.7,0.00452318]
[1762474358924,0.48899,3314.8,3314.7,0.00452318]
[1762474359534,0.59189,3314.8,3314.7,0.00452318]
[1762474360634,0.48899,3314.8,3314.7,0.49353318]
[1762474360830,0.60966001,3315.0,3314.8,0.48899]
[1762474361136,0.48899,3314.8,3314.7,0.49352318]
[1762474361529,3.21123312,3315.1,3315.0,0.1474]
[1762474361726,0.00343312,3315.1,3315.0,0.87936]
[1762474363038,0.00343312,3315.1,3315.0,1.00001999]
[1762474365035,0.00343312,3315.1,3315.0,0.87936]
[1762474365235,3.2078,3315.9,3315.5,0.1474]
[1762474365439,3.2078,3315.9,3315.8,0.73184]
[1762474365840,0.4888,3316.1,3316.0,0.87921]
[1762474366240,0.4916921,3316.1,3316.0,0.87921]
[1762474367244,0.4916921,3316.1,3316.0,0.3904]
[1762474368047,0.4916921,3316.1,3316.0,0.87921]
[1762474368943,0.4916921,3316.1,3316.0,0.3904]
[1762474369145,0.48887,3315.6,3315.5,0.1474]
[1762474370242,3.69667,3315.6,3315.5,0.1474]
[1762474370747,3.69667,3315.6,3315.5,0.63629]
[1762474370935,3.80297,3315.6,3315.1,0.12064]
[1762474371135,0.48893,3315.3,3315.2,0.48891]
[1762474371542,0.48895,3315.1,3315.0,0.87934]
[1762474371742,0.48895,3315.1,3313.7,7.189]
[1762474371743,0.48898,3314.9,3314.5,0.00354492]
[1762474371936,3.6348921,3316.1,3313.0,0.1474]
[1762474371937,3.2078,3314.7,3313.0,0.1474]
[1762474372136,3.2078,3313.6,3313.5,0.3904]
[1762474372346,1.6774,3313.6,3313.5,0.3904]
[1762474372547,3.2078,3314.0,3313.9,0.243]
[1762474373046,3.21158054,3314.0,3313.9,0.00363592]
[1762474374352,3.45228054,3314.0,3313.9,0.00363592]
[1762474375750,4.16252408,3314.0,3313.9,0.00363592]
[1762474376547,0.72985,3313.7,3313.6,0.00452318]
[1762474376748,1.44098684,3313.7,3313.6,0.00452318]
[1762474377246,1.56170685,3313.7,3313.6,0.00452318]
[1762474377648,1.56170685,3313.7,3313.6,0.00698297]
[1762474378843,0.1494,3313.2,3312.1,3.2078]
[1762474379043,3.2078,3312.6,3312.1,3.2078]
[1762474379238,0.48934,3312.5,3312.4,0.48934]
[1762474379447,0.48936,3312.3,3312.2,0.48936]
[1762474379848,0.48935,3312.4,3312.3,0.48936]
[1762474380047,0.2407,3312.5,3312.4,0.48934]
[1762474380246,0.48936,3312.3,3312.2,0.00357032]
[1762474381147,0.12076,3312.4,3311.3,0.12076]
[1762474381350,3.3572,3311.4,3310.4,3.2078]
[1762474381648,3.2078,3310.6,3310.5,0.73261]
[1762474382147,3.21167188,3310.6,3310.5,0.00382779]
[1762474383245,3.45237188,3310.6,3310.5,0.00382779]
[1762474385348,3.45237188,3310.6,3309.6,3.3552]
[1762474385349,0.3538,3309.9,3308.6,3.2078]
[1762474385543,0.2118,3310.2,3308.2,3.2078]
[1762474385544,3.2078,3309.0,3308.2,3.2078]
[1762474385851,0.00453049,3309.0,3308.9,0.3603]
[1762474386049,3.2078,3309.9,3309.8,0.85003]
[1762474386353,3.2078,3310.3,3310.0,0.48969]
[1762474386560,3.2078,3310.3,3310.1,0.48968]
[1762474386852,3.2078,3310.3,3309.8,0.00333184]
[1762474387051,3.2078,3310.2,3310.1,0.48967]
[1762474388042,3.2078,3310.2,3309.8,0.00333184]
[1762474388442,3.69747,3310.2,3310.0,0.4897]
[1762474388647,3.69747,3310.2,3309.8,0.00333184]
[1762474388648,3.4196,3310.2,3309.8,0.00333184]
[1762474388853,0.3538,3309.9,3309.8,0.00333184]
[1762474389044,3.2078,3310.2,3309.8,0.00333184]
[1762474389245,3.2078,3310.2,3310.1,0.3603]
[1762474389655,0.48968,3310.1,3309.8,0.00333184]
[1762474389953,3.2078,3310.2,3309.8,0.00333184]
[1762474389954,3.2078,3310.2,3310.0,0.4897]
[1762474391158,3.2078,3310.2,3310.1,0.48968]
[1762474391852,0.00453049,3310.5,3310.4,0.84994]
[1762474392446,3.2078,3311.0,3310.9,0.84987]
[1762474393052,3.2078,3311.4,3311.3,0.3603]
[1762474393255,3.2078,3311.4,3311.3,0.48951]
[1762474393555,3.21044622,3311.4,3311.3,0.84981]
[1762474394560,3.21044622,3311.4,3311.3,0.48951]
[1762474397256,3.21044622,3311.4,3311.3,0.84981]
[1762474397661,0.00264622,3311.4,3311.3,0.84981]
[1762474397862,0.00264622,3311.4,3311.3,8.84981]
[1762474398453,0.00264622,3311.4,3311.3,8.97060999]
[1762474399050,0.00264622,3311.4,3311.3,0.84981]
[1762474399857,3.21044622,3311.4,3311.3,0.48951]
[1762474400362,0.00264622,3311.4,3311.3,0.48951]
[1762474400553,0.00264622,3311.4,3311.3,0.84981]
[1762474403454,0.00264622,3311.4,3310.8,0.1958]
[1762474403455,3.2078,3312.2,3312.1,0.84969]
[1762474403766,0.3538,3313.1,3313.0,0.48924]
[1762474404066,3.2078,3313.1,3313.0,0.84954]
[1762474404452,3.2078,3313.1,3313.0,0.00277104]
[1762474404453,3.56511999,3313.1,3313.0,0.00277104]
[1762474404658,4.05435999,3313.1,3313.0,0.00277104]
[1762474404854,0.48932,3312.6,3311.5,3.4036]
[1762474405058,3.21131999,3313.1,3312.1,0.48939]
[1762474405059,3.2078,3312.2,3312.1,0.48939]
[1762474405260,3.2078,3312.6,3311.5,3.4036]
[1762474405568,3.2078,3312.2,3311.6,0.12076]
[1762474405771,3.2078,3312.2,3311.6,0.00275662]
[1762474405966,3.2078,3312.2,3312.1,0.48939]
[1762474406569,0.00351999,3313.1,3312.4,0.48933]
[1762474406570,0.48933,3312.5,3312.4,0.48933]
[1762474406765,4.05093,3312.5,3312.4,0.48933]
[1762474407269,3.5616,3312.5,3312.4,0.48933]
[1762474407664,3.5616,3312.5,3311.6,0.00728711]
[1762474407665,0.3538,3312.3,3311.6,0.00728711]
[1762474407860,0.84318,3312.2,3312.1,0.48937]
[1762474408060,3.2078,3312.5,3311.6,0.00728711]
[1762474408261,3.2078,3311.9,3311.6,0.00728711]
[1762474408768,3.2078,3311.9,3311.8,0.48943]
[1762474410370,0.96391,3312.5,3312.4,0.48934]
[1762474410567,3.68238,3312.5,3312.4,0.48934]
[1762474410778,4.17171,3312.5,3312.4,0.48934]
[1762474411967,3.32858,3312.5,3311.6,0.00728711]
[1762474412171,3.2078,3311.9,3311.8,0.3603]
[1762474412665,3.2078,3311.9,3311.8,0.84973]
[1762474413265,3.2078,3312.3,3312.2,0.84967]
[1762474413867,3.2078,3312.3,3312.2,0.97043]
[1762474414073,3.2078,3312.3,3312.2,0.84967]
[1762474414372,3.2078,3312.3,3312.2,0.97043]
[1762474414568,3.2078,3312.3,3312.2,0.12076]
[1762474414868,3.2078,3312.3,3312.2,0.79597]
[1762474415067,0.12427999,3313.1,3312.2,0.3066]
[1762474415068,3.2078,3312.8,3312.2,0.3066]
[1762474415263,0.00351999,3313.1,3313.0,0.79586]
[1762474415669,0.1884,3313.0,3312.1,3.2078]
[1762474415871,0.48929,3312.8,3312.1,3.2078]
[1762474416063,0.1884,3313.0,3312.2,0.12076]
[1762474416264,3.2078,3312.8,3312.0,0.1176]
[1762474416468,3.2078,3312.8,3312.1,0.12076]
[1762474416776,3.2078,3312.8,3312.7,0.4893]
[1762474417671,3.5234,3312.8,3312.7,0.4893]
[1762474418073,3.2078,3312.8,3312.7,0.8143]
[1762474418584,3.2078,3312.8,3312.2,0.12074]
[1762474419084,3.69709,3312.8,3312.7,0.4893]
[1762474419377,0.1879,3312.6,3312.0,3.3254]
[1762474419677,0.48936,3312.3,3312.2,0.48936]
[1762474420272,0.48937,3312.3,3311.6,3.33584711]
[1762474420573,0.3175,3311.7,3311.6,0.00728711]
[1762474420877,3.2078,3311.8,3311.7,0.81445]
[1762474421078,3.2078,3311.8,3311.7,0.325]
[1762474421776,3.2078,3311.8,3311.7,0.81445]
[1762474422176,3.2078,3312.6,3312.5,0.48933]
[1762474422885,3.3957,3312.6,3311.8,2.14824877]
[1762474423174,3.2078,3311.9,3311.6,2.15553588]
[1762474423374,4.01465,3312.4,3312.3,0.48935]
[1762474423681,0.48936,3312.3,3311.7,2.14824877]
[1762474423977,3.69715,3312.4,3312.3,0.48936]
[1762474424474,3.81791,3312.4,3312.3,0.48936]
[1762474424674,3.69715,3312.4,3312.3,0.48936]
[1762474424875,3.2078,3312.4,3312.3,0.48936]
[1762474425179,3.2078,3312.4,3311.9,0.12076]
[1762474425180,3.69715,3312.4,3311.9,2.26900877]
[1762474425378,3.2078,3312.4,3312.3,0.48936]
[1762474425579,3.2078,3312.4,3312.3,0.81436]
[1762474425779,0.1879,3312.6,3312.5,0.48933]
[1762474426085,3.2078,3313.2,3313.0,0.81426]
[1762474426273,0.70099,3313.5,3313.0,0.81426]
[1762474426469,0.2118,3313.5,3313.0,0.81426]
[1762474426673,3.2078,3313.6,3313.0,0.90416]
[1762474427276,3.69698,3313.6,3313.0,0.90416]
[1762474427575,3.2078,3313.6,3313.0,0.90416]
[1762474427977,3.2078,3313.2,3313.0,0.81426]
[1762474428675,0.00453049,3313.4,3313.0,0.81426]
[1762474428882,3.2078,3313.2,3313.0,0.81426]
[1762474429276,0.00453049,3313.4,3313.0,2.96250877]
[1762474429882,3.2078,3313.6,3313.5,0.81418]
[1762474430280,3.2078,3314.0,3313.9,0.81413]
[1762474430787,3.21052054,3314.0,3313.9,0.81413]
[1762474431182,3.21052054,3314.0,3313.9,0.325]
[1762474431384,3.21052054,3314.0,3313.9,0.81413]
[1762474431887,3.21052054,3314.0,3313.6,2.15066865]
[1762474432078,3.52802054,3314.0,3313.9,0.48913]
[1762474432383,0.3175,3313.7,3313.6,0.49370049]
[1762474432572,0.3175,3313.7,3313.6,0.00453049]
[1762474432776,0.1879,3313.8,3313.7,0.48916]
[1762474433782,0.5054,3313.8,3313.7,0.48916]
[1762474434180,0.80666,3313.7,3313.6,0.00453049]
[1762474434380,0.80666,3313.7,3313.6,0.49370049]
[1762474434580,0.3175,3313.7,3313.6,0.49370049]
[1762474435575,0.80666,3313.7,3313.6,0.00453049]
[1762474435887,0.92738001,3313.7,3313.6,0.00453049]
[1762474436985,0.92738001,3313.7,3313.6,0.49370049]
[1762474437184,0.1879,3313.8,3313.7,0.48916]
[1762474437887,3.33124055,3314.0,3313.8,0.48914]
[1762474437888,0.3175,3313.9,3313.8,0.48914]
[1762474438183,3.88753054,3314.0,3313.9,0.48913]
[1762474438390,0.48913,3313.9,3313.6,0.00453049]
[1762474438686,4.20503054,3314.0,3313.9,0.48913]
[1762474439586,0.48914,3313.9,3313.8,0.48914]
[1762474439784,3.71592054,3314.0,3313.9,0.48913]
[1762474440083,3.71592054,3314.0,3313.9,0.81413]
[1762474440084,3.21052054,3314.0,3313.9,0.81413]
[1762474440888,3.2078,3314.4,3314.3,0.325]
[1762474441186,3.2078,3314.8,3314.7,0.81401]
[1762474441779,0.00211912,3314.8,3314.7,3.53541307]
[1762474442092,3.2078,3315.7,3315.6,0.48888]
[1762474442589,3.2078,3315.7,3315.6,0.81388]
[1762474443085,0.00368976,3315.7,3315.6,0.81388]
[1762474443288,0.00368976,3315.7,3315.6,4.02168]
[1762474444085,0.00368976,3315.7,3315.6,3.5328]
[1762474444694,0.00368976,3315.7,3315.6,3.7281]
[1762474445092,3.3957,3316.5,3315.9,0.3449]
[1762474445393,3.3957,3316.5,3315.7,0.12061999]
[1762474446190,0.00295005,3316.4,3315.7,0.12061999]
[1762474446390,0.00295005,3316.4,3316.3,0.48877]
[1762474446904,0.00295005,3316.4,3316.3,0.83367]
[1762474448190,0.00295005,3316.4,3316.3,0.48877]
[1762474449101,0.00295005,3316.4,3316.0,12.5068]
[1762474449294,0.00295005,3316.4,3316.0,3.2078]
[1762474449491,0.49171005,3316.4,3316.0,3.2078]
[1762474449796,0.33685005,3316.4,3315.9,9.291]
[1762474450092,0.48879,3316.2,3316.0,0.4888]
[1762474450298,0.12357005,3316.4,3315.6,3.4031]
[1762474450592,0.2006,3315.6,3315.3,0.00453049]
[1762474450788,0.3339,3316.0,3315.9,0.48883]
[1762474450991,3.2078,3316.2,3316.1,0.4888]
[1762474451186,0.3339,3316.0,3315.4,3.2078]
[1762474451388,0.45454,3316.1,3316.0,0.48882]
[1762474451592,0.3339,3316.1,3316.0,0.48882]
[1762474451896,0.00295005,3316.4,3316.3,0.48877]
[1762474452798,0.00295005,3316.4,3316.3,0.83367]
[1762474454393,0.00295005,3316.4,3316.3,4.04147]
[1762474454600,3.2078,3317.5,3317.4,0.48861]
[1762474455292,0.12058,3317.7,3317.6,0.83348]
[1762474455493,3.32838,3317.9,3317.8,0.48855]
[1762474455694,3.33058832,3317.9,3317.6,0.00227713]
[1762474455892,3.33058832,3317.9,3317.8,0.48855]
[1762474456293,3.33058832,3317.9,3317.8,4.04125]
[1762474456294,0.00220832,3317.9,3317.8,4.04125]
[1762474456496,0.00220832,3317.9,3317.8,12.04125]
[1762474456696,0.12056,3318.9,3318.0,0.1795]
[1762474456895,0.3339,3319.0,3318.9,0.48838]
[1762474457106,0.45444001,3319.0,3318.8,0.4884]
[1762474457299,0.82228,3319.0,3318.6,0.48842]
[1762474457598,0.12052,3318.9,3318.7,0.48842]
[1762474457899,0.12052,3318.9,3318.2,3.2078]
[1762474458098,0.2006,3318.6,3317.8,3.2078]
[1762474458292,0.48847,3318.4,3317.8,3.2078]
[1762474458796,0.12056,3318.4,3318.3,0.48847]
[1762474459888,0.2006,3318.6,3318.5,0.48845]
[1762474460091,0.12054001,3318.7,3318.5,0.48845]
[1762474460492,0.002484,3319.0,3318.9,0.48839]
[1762474460903,0.12302401,3319.0,3318.6,3.2078]
[1762474461302,0.12302401,3319.0,3318.8,0.4884]
[1762474461695,0.2006,3318.6,3318.1,3.2078]
[1762474461894,0.3339,3318.3,3318.2,0.48849]
[1762474462100,0.68903,3318.6,3318.3,0.48848]
[1762474462400,0.495176,3318.5,3318.4,0.48846]
[1762474462596,0.495176,3318.5,3318.1,3.2078]
[1762474462799,0.37463599,3318.4,3318.1,3.2078]
[1762474462998,0.12054001,3318.4,3318.3,0.48847]
[1762474463199,0.12054001,3318.4,3318.1,3.2078]
[1762474463200,0.68903,3318.6,3318.4,0.48846]
[1762474463604,1.02293,3318.6,3318.5,0.48845]
[1762474463796,0.48845,3318.5,3318.2,0.48849]
[1762474463994,0.37463599,3318.5,3318.1,3.2078]
[1762474464305,0.48845,3318.5,3318.2,0.48849]
[1762474464601,0.002484,3319.0,3318.6,0.3449]
[1762474464802,0.002484,3319.0,3318.9,0.48839]
[1762474465399,0.49763999,3319.0,3318.9,0.48839]
[1762474466196,0.82229,3318.9,3318.8,0.48839]
[1762474466400,0.48839,3318.9,3318.6,0.48843]
[1762474466704,0.48839,3318.9,3318.8,0.4884]
[1762474466906,0.456904,3319.0,3318.9,0.48839]
[1762474467606,0.83153999,3319.0,3318.9,0.48839]
[1762474467807,0.49763999,3319.0,3318.9,0.48839]
[1762474468004,0.49763999,3319.0,3318.9,0.83329]
[1762474468408,0.37711999,3319.0,3318.9,0.83329]
[1762474468802,3.2078,3319.9,3319.7,0.48827]
[1762474469512,0.32110001,3319.8,3319.7,0.48827]
[1762474469811,0.20310582,3319.8,3319.7,0.48827]
[1762474470111,0.32360583,3319.8,3319.7,0.48827]
[1762474470702,0.81186583,3319.8,3319.7,0.48827]
[1762474471304,0.32360583,3319.8,3319.4,0.00452359]
[1762474471508,4.2306,3319.5,3319.4,0.00452359]
[1762474471900,4.35110001,3319.5,3319.4,0.00452359]
[1762474472210,0.82229,3318.9,3318.8,3.6962]
[1762474472406,0.3339,3318.7,3318.2,3.2078]
[1762474472709,0.82232,3318.7,3318.6,0.48843]
[1762474473210,0.94286001,3318.7,3318.6,0.48843]
[1762474474007,0.00452359,3319.0,3318.9,0.48839]
[1762474474309,0.45894359,3319.0,3318.9,0.48839]
[1762474475313,0.12504359,3319.0,3318.3,0.00452359]
[1762474475515,0.00452359,3319.0,3318.9,0.48839]
[1762474475704,0.1250636,3319.0,3318.9,0.48839]
[1762474476310,0.1250636,3319.0,3318.9,0.80199]
[1762474476611,0.00452359,3319.0,3318.9,0.80199]
[1762474477011,0.00452359,3319.0,3318.9,0.92251]
[1762474477715,0.00452359,3319.0,3318.9,0.43412]
[1762474477917,0.00452359,3319.0,3318.6,3.2078]
[1762474478314,0.00452359,3319.0,3318.6,3.32832]
[1762474478520,0.29382359,3319.0,3318.9,0.48839]
[1762474478724,0.2893,3318.7,3318.6,3.2078]
[1762474478914,0.2893,3318.4,3318.3,0.00452359]
[1762474479120,0.1839,3318.6,3318.3,0.00452359]
[1762474479321,0.49290359,3319.0,3318.7,0.48841]
[1762474479521,0.2893,3318.8,3318.7,0.48841]
[1762474479818,0.00452359,3319.0,3318.9,0.48839]
[1762474480523,0.49289359,3319.0,3318.9,0.48839]
[1762474480722,0.49289359,3319.0,3318.5,0.12052]
[1762474480723,0.00452359,3319.0,3318.5,0.12052]
[1762474480919,0.4732,3318.6,3318.5,0.48844]
[1762474481121,0.1839,3318.6,3318.5,0.48844]
[1762474481516,0.12054001,3318.7,3318.6,0.48843]
[1762474482018,0.1839,3318.6,3318.4,0.48846]
[1762474482220,0.48845,3318.5,3318.3,0.00452359]
[1762474482620,0.1839,3318.6,3318.3,0.00452359]
[1762474482621,0.2893,3318.4,3318.3,0.00452359]
[1762474482815,0.77776,3318.4,3318.3,0.00452359]
[1762474483018,3.98556,3318.4,3318.3,0.00452359]
[1762474483323,0.77786,3317.7,3317.5,0.48859]
[1762474483622,0.77786,3317.7,3317.1,0.12056]
[1762474484023,0.77786,3317.7,3317.0,3.4031]
[1762474484319,0.40986,3317.7,3317.6,0.49085713]
[1762474484527,0.89842,3317.7,3317.6,0.49085713]
[1762474485022,0.40986,3317.7,3317.6,0.49085713]
[1762474485222,0.89842,3317.7,3317.6,0.00227713]
[1762474485622,0.40986,3317.7,3317.6,0.49085713]
[1762474486233,0.2893,3317.7,3317.6,0.49085713]
[1762474486624,0.89842,3317.7,3317.6,0.00227713]
[1762474486824,0.96181,3317.4,3317.3,0.00452359]
[1762474487026,4.16961,3317.4,3317.3,0.00452359]
[1762474487428,4.29019,3317.4,3317.3,0.00452359]
[1762474487626,3.2078,3317.9,3317.5,0.48858]
[1762474487825,0.2893,3317.6,3317.5,0.4909798]
[1762474488327,0.89846,3317.6,3317.5,0.0023998]
[1762474488932,0.40988,3317.6,3317.5,0.0023998]
[1762474489126,0.89846,3317.6,3317.5,0.4909898]
[1762474489326,0.40988,3317.6,3317.5,0.4909898]
[1762474490532,0.89846,3317.6,3317.5,0.4909898]
[1762474490722,0.89846,3317.6,3317.5,0.0023998]
[1762474492031,0.89846,3317.6,3317.5,0.4909898]
[1762474492432,0.89846,3317.6,3317.5,0.0023998]
[1762474493131,0.89846,3317.6,3317.5,0.4909898]
[1762474494529,0.89846,3317.6,3317.5,0.0023998]
[1762474495127,0.89846,3317.6,3317.5,0.4909898]
[1762474495731,0.2893,3317.6,3317.5,0.4909898]
[1762474496130,0.77788,3317.6,3317.5,0.0023998]
[1762474496538,0.77791,3317.4,3317.3,0.00452359]
[1762474496737,3.98571,3317.4,3317.3,0.00452359]
[1762474497240,4.10629,3317.4,3317.3,0.00452359]
[1762474497438,4.10629,3317.4,3317.3,0.0069816]
[1762474500242,3.98571,3317.4,3317.3,0.0069816]
[1762474500444,3.2078,3317.8,3317.7,0.48856]
[1762474500630,0.48861,3317.4,3317.3,0.0069816]
[1762474500836,3.98571,3317.4,3317.3,0.0069816]
[1762474501036,3.98571,3317.4,3317.3,0.4956016]
[1762474501037,0.2893,3317.4,3317.3,0.4956016]
[1762474501341,0.00306675,3317.9,3317.3,0.4956016]
[1762474501342,0.00306675,3317.9,3317.8,0.48855]
[1762474501532,0.00306675,3317.9,3317.8,0.80565]
[1762474501938,0.00306675,3317.9,3317.8,8.92621]
[1762474502137,0.4884,3318.8,3318.7,0.48842]
[1762474502337,3.2078,3319.1,3318.8,0.4884]
[1762474502338,0.3089636,3319.0,3318.8,0.4884]
[1762474502545,0.18842359,3319.0,3318.8,0.4884]
[1762474502736,0.18842359,3319.0,3318.9,0.48839]
[1762474503134,0.00844112,3319.0,3318.9,0.80549]
[1762474503639,0.48164112,3319.0,3318.9,0.12052]
[1762474503835,0.2893,3318.9,3318.8,0.4884]
[1762474504039,0.00844112,3319.0,3318.8,0.4884]
[1762474504343,0.00844112,3319.0,3318.8,0.12052]
[1762474504543,0.00844112,3319.0,3318.8,0.60892]
[1762474505738,0.00844112,3319.0,3318.9,0.3171]
[1762474506240,0.00844112,3319.0,3318.9,0.43762]
[1762474507037,0.00844112,3319.0,3318.9,8.92601]
[1762474507548,4.112e-05,3319.0,3318.9,8.92601]
[1762474507750,0.1839,3321.0,3320.2,0.4882]
[1762474507751,3.2078,3320.3,3320.2,0.4882]
[1762474508342,3.2078,3320.3,3320.2,0.2876]
[1762474508542,0.1839,3321.0,3320.2,0.2876]
[1762474508543,0.1839,3321.0,3320.2,3.2078]
[1762474508852,0.1662,3320.5,3320.4,0.48817]
[1762474509041,0.00452359,3320.6,3320.5,0.48815]
[1762474509247,0.00452359,3320.6,3320.5,0.77575]
[1762474510346,0.00452359,3320.6,3320.5,0.89620999]
[1762474510745,0.00452359,3320.6,3320.5,0.60860999]
[1762474513146,0.00452359,3320.6,3320.2,0.00297419]
[1762474513346,0.00452359,3320.6,3320.5,0.77575]
[1762474513950,0.00452359,3320.6,3320.5,4.14365]
[1762474514146,3.2078,3322.1,3322.0,0.83983]
[1762474514348,3.2078,3322.5,3322.4,0.48787]
[1762474514543,3.2078,3322.5,3322.4,0.77547]
[1762474514757,0.1662,3322.0,3321.3,3.2078]
[1762474515054,3.374,3322.0,3321.5,0.48801]
[1762474515256,0.16963513,3322.0,3321.3,3.21231671]
[1762474515456,0.48796,3321.8,3321.5,0.48801]
[1762474515750,0.2701,3321.4,3321.3,3.21231671]
[1762474515956,0.75812,3321.4,3321.3,0.00451671]
[1762474517053,0.87856,3321.4,3321.3,0.00451671]
[1762474518348,0.48813,3320.7,3320.5,0.48815]
[1762474518647,0.48814,3320.6,3320.5,0.48815]
[1762474518852,3.2078,3320.8,3320.3,3.32825999]
[1762474519058,3.374,3320.4,3319.8,3.2078]
[1762474519349,0.75831,3320.1,3320.0,0.00451671]
[1762474519551,0.2701,3319.1,3319.0,3.2078]
[1762474519853,0.1662,3319.2,3319.0,3.2078]
[1762474520050,0.48832,3319.4,3319.1,0.48835]
[1762474520456,0.48833,3319.3,3319.1,0.4909456]
[1762474520750,0.1662,3319.8,3319.1,0.4909456]
[1762474520751,3.2078,3320.9,3319.2,12.7005]
[1762474520943,3.2078,3320.9,3320.5,0.48815]
[1762474521546,0.48812,3320.8,3320.5,0.48815]
[1762474521753,0.00661954,3320.6,3320.5,0.48815]
[1762474522350,0.00661954,3320.6,3320.5,0.77575]
[1762474523056,0.48815,3320.5,3320.3,0.12045999]
[1762474523259,0.48815,3320.5,3319.9,3.2078]
[1762474523260,0.4363,3320.4,3319.9,3.2078]
[1762474523454,0.1662,3320.4,3320.2,0.48819]
[1762474523657,3.69596,3320.5,3320.3,0.48818]
[1762474523860,0.00661954,3320.6,3320.4,0.48816]
[1762474524551,0.00661954,3320.6,3320.5,0.2876]
[1762474524957,0.00661954,3320.6,3320.5,0.40805999]
[1762474525460,0.00661954,3320.6,3320.5,0.12045999]
[1762474525655,0.00661954,3320.6,3320.5,0.2876]
[1762474525856,3.2078,3321.7,3321.5,0.48801]
[1762474526163,3.2078,3321.7,3321.0,3.2078]